Cogmind - Beta 14 @@@ ROGUE MODE // 2025.01.12 @ 02:34:04 Player: muesli Result: Self-destructed Performance ------------- Evolutions (2) 1000 Regions Visited (4) 800 Robots Destroyed (30) 150 Value Destroyed (508) 508 Prototype IDs (1) 20 Alien Tech Used (0) 0 Bonus (-22) -22 TOTAL SCORE: 2456 Bonus ------- High Alert Combat Kills 4 Friendly Fire -26 Cogmind --------- Core Integrity 157/550 Matter 269/300 Energy 100/100 System Corruption 0% Temperature Cool (0) Movement Core (50) Location -8/Materials Parts ------- > --- POWER (2) -------- (None) > --- PROPULSION (3) --- (None) > --- UTILITY (4) ------ Armor Integrity Analyzer > --- WEAPON (2) ------- (None) > --- INVENTORY (5) ---- Cryofiber Web Seismic Detector Plasma Flamer Peak State ------------ > --- POWER ------------ Light Deuterium Engine Nuclear Core > --- PROPULSION ------- Wheel Wheel > --- UTILITY ---------- Advanced Visual Processing Unit Armor Integrity Analyzer Decoy Drone Bay > --- WEAPON ----------- Gauss Rifle Gauss Rifle > --- INVENTORY -------- Cryofiber Web Seismic Detector Energy Filter Missile Launcher Plasma Flamer [Rating: 38] Favorites ----------- Power Nuclear Core Engine Light Deuterium Engine Power Core Nuclear Core Propulsion Wheel Wheel Wheel Utility Decoy Drone Bay Device Decoy Drone Bay Storage Small Storage Unit Processor Armor Integrity Analyzer Hackware System Shield Protection Scrap Shield Weapon Gauss Rifle Ballistic Gun Gauss Rifle Ballistic Cannon Heavy Assault Cannon Launcher Grenade Launcher Special Weapon Plasma Flamer Build | -11 -10 -10 -10 -8 ------- Run | Yrd Mat Min Sub Mat Slots Evolved 4 | . . . . 4 Power 1 | . . . . 1 Propulsion 1 | . . . . 1 Utility 2 | . . . . 2 Weapon . | . . . . . Parts Attached 28 | 4 2 3 2 17 Power 6 | 1 . 1 . 4 Engine 2 | 1 . . . 1 Core 4 | . . 1 . 3 Reactor . | . . . . . Propulsion 3 | 2 . . . 1 Treads . | . . . . . Leg . | . . . . . Wheel 3 | 2 . . . 1 Hover . | . . . . . Flight . | . . . . . Utility 13 | 1 1 2 1 8 Device 6 | . . 1 . 5 Storage 1 | 1 . . . . Processor 2 | . . . . 2 Hackware 1 | . . . . 1 Protection 3 | . 1 1 1 . Artifact . | . . . . . Weapon 6 | . 1 . 1 4 Energy Gun . | . . . . . Energy Cannon . | . . . . . Ballistic Gun 2 | . . . . 2 Ballistic Cannon 1 | . . . . 1 Launcher 2 | . 1 . . 1 Special Weapon 1 | . . . 1 . Impact Weapon . | . . . . . Slashing Weapon . | . . . . . Piercing Weapon . | . . . . . Special Melee Weapon . | . . . . . Unidentified Prototypes 1 | . . 1 . . Parts Lost 10 | . . . 1 9 Power 2 | . . . . 2 Propulsion 3 | . . . . 3 Utility 2 | . . . . 2 Weapon 3 | . . . 1 2 Highest Loss Streak 8 | . . . 1 8 To Critical Strikes . | . . . . . Average Slot Usage (%) 75 | . 82 71 70 77 Engine 4 | . 14 2 . 4 Core 10 | . . 11 14 11 Wheel 24 | . 28 28 28 18 Device 7 | . . 13 . 8 Storage 1 | . 14 . . . Processor 6 | . . . . 15 Protection 4 | . 12 . 13 . Ballistic Gun 4 | . . . . 11 Ballistic Cannon 1 | . . . . 2 Launcher 6 | . 13 14 4 . Special Weapon 2 | . . . 9 . Peak Build Rating 38 | 4 6 21 21 38 Average Rating 21 | 3 5 19 14 32 On Entrance 9 | . 4 6 21 15 Naked Turns . | . . . . . Heaviest Build 36 | 10 16 24 28 36 Greatest Support 30 | 20 20 20 20 30 Greatest Overweight (x) 1 | . . 1 1 1 Average Overweight (x) . | . . . 1 . Largest Inventory Capacity 8 | 8 8 8 5 5 Average Capacity 5 | 6 8 5 5 5 Most Carried 5 | 1 3 5 5 5 Average Carried 4 | . 1 4 4 4 Final Capacity 8 | 8 8 5 5 5 Final Carried 5 | 1 3 5 4 3 Class Distribution -------------------- 100% | Mutant Dominant Class ---------------- Mutant | -10/Materials Mutant | -10/Mines Mutant | -10/Subcaves Mutant | -8/Materials Resources | -11 -10 -10 -10 -8 ----------- Run | Yrd Mat Min Sub Mat Matter Collected 830 | 162 166 103 25 374 Remotely . | . . . . . Salvage Created 552 | . 222 37 . 293 Parts 66 | . 33 5 . 28 Haulers Intercepted 1 | . 1 . . . Recyclers Shooed 2 | . 1 . . 1 Parts Field Recycled . | . . . . . Retrieved Matter . | . . . . . Parts Self-Destructed 12 | . . . 12 . Prevented . | . . . . . Kills | -11 -10 -10 -10 -8 ------- Run | Yrd Mat Min Sub Mat Combat Hostiles Destroyed 17 | . 9 . . 8 Melee 1 | . . . . 1 Guns 6 | . . . . 6 AOE 10 | . 9 . . 1 Classes Destroyed 8 | . 6 1 . 1 Worker 5 | . 3 . . 2 Builder 1 | . . 1 . . Hauler 1 | . 1 . . . Operator 3 | . 3 . . . Watcher 3 | . 1 . . 2 Swarmer 12 | . 6 . . 6 Grunt 3 | . 3 . . . Sentry 2 | . . . . 2 Best Kill Streak 10 | . 10 1 . 4 Combat Bots Only 6 | . 6 . . 3 Max Kills in Single Turn 3 | . 3 1 . 2 Gunslinging . | . . . . . Exploded 3 | . 3 . . 1 Melee 1 | . . . . 1 Uniques/NPCs Destroyed . | . . . . . Combat | -11 -10 -10 -10 -8 -------- Run | Yrd Mat Min Sub Mat Hostile Shots Fired 191 | . 26 . 13 152 Missed 71 | . 11 . 4 56 Damage Taken 1761 | . 184 1 200 1376 Core 470 | . 62 . 15 393 Absorbed by Shields . | . . . . . Core Remaining (%) 84 | 100 . . 69 . Volleys Fired 60 | . 14 1 5 40 Largest 2 | . 1 1 1 2 Hottest 100 | . 30 30 100 60 Shots Fired 75 | . 14 1 5 55 Gun 48 | . . . . 48 Cannon 5 | . . . . 5 Launcher 18 | . 14 1 1 2 Special 4 | . . . 4 . Kinetic 53 | . . . . 53 Thermal 4 | . . . 4 . Explosive 18 | . 14 1 1 2 Electromagnetic . | . . . . . Robot Hit Streak 5 | . 4 . 3 5 Robot Miss Streak 5 | . 1 1 . 5 Penetration Max 1 | . . . . 1 Secondary Targets . | . . . . . Shots Hit Robots 38 | . 7 . 3 28 Core Hits 48 | . 25 4 1 18 Critical Kills 1 | . . . . 1 Critical Parts Destroyed . | . . . . . Critical Strikes 1 | . . . . 1 Destroy 1 | . . . . 1 Melee Attacks . | . . . . . Impact . | . . . . . Slashing . | . . . . . Piercing . | . . . . . Sneak Attacks . | . . . . . Combat Hostiles . | . . . . . Follow-up Attacks . | . . . . . Damage Inflicted 1702 | . 831 126 88 657 Guns 497 | . . . . 497 Cannons . | . . . . . Explosions 1066 | . 812 123 62 69 Melee . | . . . . . Ramming 113 | . 19 3 . 91 Kinetic 497 | . . . . 497 Thermal 26 | . . . 26 . Explosive 1066 | . 812 123 62 69 Electromagnetic . | . . . . . Impact . | . . . . . Slashing . | . . . . . Piercing . | . . . . . Highest Corruption . | . . . . . Average Corruption . | . . . . . Corruption Purged . | . . . . . Corruption Blocked . | . . . . . Overload Shots . | . . . . . Overflow Damage 43 | . 36 . . 7 Projectiles . | . . . . . Explosions 43 | . 36 . . 7 Melee . | . . . . . Knockbacks 1 | . 1 . . . Impact 1 | . 1 . . . Kinetic . | . . . . . Secondary . | . . . . . Self-Inflicted Damage 237 | . 65 1 38 133 Shots 6 | . 3 . 1 2 Rammed 15 | . 2 1 . 12 Targets Rammed 15 | . 2 1 . 12 Kicked . | . . . . . Crushed . | . . . . . Highest Temperature 61 | . 13 . 24 61 Average Temperature 26 | . 7 . 18 29 Received Heat Transfer 108 | . 12 . 24 72 Siege Activations . | . . . . . Robots Corrupted . | . . . . . Combat Hostiles . | . . . . . Parts Fried . | . . . . . Impact Corruptions . | . . . . . Robots Melted . | . . . . . Combat Hostiles . | . . . . . Parts Melted . | . . . . . Heat Transferred 160 | . . . 160 . Parts Sabotaged . | . . . . . Parts Stolen . | . . . . . Parts Stripped . | . . . . . Power Chain Reactions . | . . . . . Alert | -11 -10 -10 -10 -8 ------- Run | Yrd Mat Min Sub Mat Peak Influence 480 | . 480 187 . 196 Initial 187 | . . 187 . . Average 114 | . 231 118 . 84 Maximum Alert Level 2 | . 2 . . . Low Security (%) 91 | 100 42 100 . 100 Level 1 5 | . 35 . . . Level 2 3 | . 21 . . . Level 3 . | . . . . . Level 4 . | . . . . . Level 5 . | . . . . . High Security . | . . . . . Max Security . | . . . . . Squads Dispatched 4 | . 1 1 . 2 Investigation 1 | . . 1 . . Extermination . | . . . . . Reinforcement 3 | . 1 . . 2 Assault . | . . . . . Garrison . | . . . . . Intercept . | . . . . . Searches Triggered . | . . . . . Construction Impeded 1 | . . . . 1 Haulers Reinforced . | . . . . . Active Scanning Responses . | . . . . . Cargo Convoy Interrupts . | . . . . . Stealth | -11 -10 -10 -10 -8 --------- Run | Yrd Mat Min Sub Mat Distress Signals 2 | . . . . 2 Communications Jammed . | . . . . . Distress Signals . | . . . . . Times Spotted 54 | . 13 . 8 33 Peak Tracking Total 14 | . 5 . 3 14 Tactical Retreats 4 | . . . . 4 Traps | -11 -10 -10 -10 -8 ------- Run | Yrd Mat Min Sub Mat Traps Triggered . | . . . . . Indirectly . | . . . . . Trap Hack Attempts . | . . . . . Triggered . | . . . . . Disarmed . | . . . . . Reprogrammed . | . . . . . Reused . | . . . . . Traps Extracted . | . . . . . Installed . | . . . . . Triggered . | . . . . . Machines | -11 -10 -10 -10 -8 ---------- Run | Yrd Mat Min Sub Mat Machines Disabled 7 | . 6 . . 1 Max in Single Turn 2 | . 2 . . 1 Machines Repaired . | . . . . . Machines Dismantled . | . . . . . Machines Sabotaged . | . . . . . Overloaded Fab Kills . | . . . . . Hacking | -11 -10 -10 -10 -8 --------- Run | Yrd Mat Min Sub Mat Machines Accessed 7 | . 3 2 . 2 Terminals 4 | . 3 . . 1 Fabricators . | . . . . . Repair Stations . | . . . . . Recycling Units . | . . . . . Scanalyzers . | . . . . . Garrison Access 1 | . . . . 1 Total Hacks 13 | . 8 2 . 3 Successful 9 | . 6 2 . 1 Failed 4 | . 2 . . 2 Catastrophic . | . . . . . Database Lockouts . | . . . . . Manual . | . . . . . Terminals 9 | . 8 . . 1 Fabricators . | . . . . . Repair Stations . | . . . . . Recycling Units . | . . . . . Scanalyzers . | . . . . . Garrison Access 2 | . . . . 2 Terminal Hacks 9 | . 6 2 . 1 Record 2 | . 1 . . 1 Robot Analysis 1 | . 1 . . . Open Door 2 | . . 2 . . Maintenance Status 2 | . 2 . . . Investigation Status 1 | . 1 . . . Hauler Manifests 1 | . 1 . . . Fabricator Hacks . | . . . . . Repair Station Hacks . | . . . . . Recycling Unit Hacks . | . . . . . Scanalyzer . | . . . . . Garrison Access Hacks . | . . . . . Unauthorized Hacks . | . . . . . Terminals . | . . . . . Fabricators . | . . . . . Repair Stations . | . . . . . Recycling Units . | . . . . . Scanalyzers . | . . . . . Garrison Access . | . . . . . Data Cores Recovered 2 | . 2 . . . Used 1 | . 1 . . . Hacking Detections 3 | . 1 . . 2 Full Trace Events . | . . . . . Feedback Events . | . . . . . Feedback Blocked . | . . . . . Robot Schematics Acquired . | . . . . . Robots Built . | . . . . . Authchips . | . . . . . Time . | . . . . . Total Robot Build Rating . | . . . . . Part Schematics Acquired . | . . . . . Parts Built . | . . . . . Authchips . | . . . . . Time . | . . . . . Total Part Build Rating . | . . . . . Parts Repaired . | . . . . . Time . | . . . . . Parts Recycled . | . . . . . Recycled Matter . | . . . . . Retrieved Matter . | . . . . . Retrieved Components . | . . . . . Parts Scanalyzed . | . . . . . Part Schematics Acquired . | . . . . . Parts Damaged . | . . . . . Bothacking | -11 -10 -10 -10 -8 ------------ Run | Yrd Mat Min Sub Mat Used RIF Installer . | . . . . . Robots Hacked . | . . . . . Non-combat . | . . . . . Combat . | . . . . . Robot Hacks Applied . | . . . . . Relay Couplers Released . | . . . . . Fabnet Peak Effective % . | . . . . . Robots Rewired . | . . . . . Allies Hacked . | . . . . . Hacks Repelled . | . . . . . Allies | -11 -10 -10 -10 -8 -------- Run | Yrd Mat Min Sub Mat Total Allies . | . . . . . Largest Group . | . . . . . Highest-Rated Group . | . . . . . Highest-Rated Ally . | . . . . . Total Orders . | . . . . . Ally Attacks . | . . . . . Total Damage . | . . . . . Kills . | . . . . . Allies Corrupted . | . . . . . Allies Melted . | . . . . . Intel | -11 -10 -10 -10 -8 ------- Run | Yrd Mat Min Sub Mat Robot Analysis Total 1 | . 1 . . . Derelict Logs Recovered . | . . . . . Drone Launches 16 | . . . . 16 Drone Recoveries . | . . . . . Exploration | -11 -10 -10 -10 -8 ------------- Run | Yrd Mat Min Sub Mat Turns Passed 2542 | 75 303 635 524 1005 Spaces Moved 2501 | 87 331 652 514 917 Core 14 | 4 . . . 10 Treads . | . . . . . Legs . | . . . . . Wheels 2487 | 83 331 652 514 907 Hover . | . . . . . Flight . | . . . . . Fastest Speed 50 | 50 80 80 95 50 Average Speed 91 | 78 80 94 95 93 Slowest Speed 95 | 80 80 95 95 95 Overloaded Moves . | . . . . . Propulsion Burnouts . | . . . . . Robots Hopped . | . . . . . Cave-ins Triggered . | . . . . . Exploration Rate (%) 41 | 4 45 92 28 36 Regions Visited 4 Branch Regions 2 Pre-discovered Areas 1 | . . . 1 . Known Exits Taken . | . . . . . Unknown Exits Taken 4 | 1 1 1 1 . Scrap Searched 1 | . . 1 . . Spaces Dug . | . . . . . Terrain Destroyed 122 | . 80 9 7 26 Melee . | . . . . . Projectile 5 | . . . . 5 AOE 116 | . 80 9 7 20 Terrain Rammed . | . . . . . Walls Destroyed . | . . . . . Machines Disabled . | . . . . . Actions | -11 -10 -10 -10 -8 --------- Run | Yrd Mat Min Sub Mat Total 2672 | 91 353 675 544 1009 Wait 28 | . 3 1 19 5 Move 2497 | 86 330 651 513 917 Hop . | . . . . . Pick Up 15 | 1 2 5 2 5 Fast Attach 16 | 4 2 . . 10 Attach 8 | . . 2 2 4 Detach 3 | . . 1 . 2 Swap 4 | . . 1 . 3 Drop 19 | . . 5 3 11 Fire 60 | . 14 1 5 40 Melee . | . . . . . Ram 15 | . 2 1 . 12 Kick . | . . . . . Crush . | . . . . . Escape Stasis . | . . . . . Rewire 7 | . . 7 . . Trap . | . . . . . Miscellaneous . | . . . . . Route ------- -11/Scrapyard -10/Materials -10/Mines (discovered 2 exits: [*Mat] / [*Sub]) -10/Subcaves -8/Materials History --------- Turn | Location | Event 27 | -11/Scrapyard | Discovered new exit (range 15) 76 | -11/Scrapyard | Entered Materials 304 | -10/Materials | Build established: Mutant 331 | -10/Materials | Discovered new exit (range 16) 379 | -10/Materials | Entered Mines 397 | -10/Mines | Found the Drone Emporium 407 | -10/Mines | Found Prototype Device 414 | -10/Mines | Identified Decoy Drone Bay 472 | -10/Mines | Met a Derelict shopkeep closing up shop 702 | -10/Mines | A weapon hastily lodged in a ceiling crevice suddenly fell to the ground 847 | -10/Mines | Discovered new exit (range 16) 995 | -10/Mines | Discovered new exit (range 6) 1014 | -10/Mines | Entered Subcaves 1164 | -10/Subcaves | Ambushed by swarm of Subdwellers 1366 | -10/Subcaves | Shifting Twisted Machinery released Sub. Machine Gun 1401 | -10/Subcaves | Shifting Twisted Machinery released Mak. Light Armor Plating 1483 | -10/Subcaves | Discovered new exit (range 12) 1484 | -10/Subcaves | Learned location of Zion (-7) 1484 | -10/Subcaves | Met a Zionite searching for "candidates" 1486 | -10/Subcaves | Shifting Twisted Machinery released Shrapnel Trap 1502 | -10/Subcaves | Shifting Twisted Machinery released Sub. Optics 1538 | -10/Subcaves | Entered Materials 1538 | -8/Materials | Evolved 4 slots: Power x1, Propulsion x1, Utility x2 1952 | -8/Materials | Lost 16 allies 2528 | -8/Materials | Core integrity fell below 50% 2543 | -8/Materials | Self-destructed Last Messages --------------- area. U-05 Engineer builds a Door. Decoy Drone Bay destroyed. Hvy. Assault Cannon destroyed. Slammed into W-25 Informer. Wheel destroyed. Lgt. Nuclear Core destroyed. Knocked back. S-10 Pest knocked back. W-25 Informer sends out distress signal. Penetrated by Slug. Lgt. Nuclear Core destroyed. Knocked back. Wheel destroyed. Slammed into K-01 Serf. K-01 Serf destroyed. K-01 Serf collects debris. Y-45 Defender destroyed. Missile Launcher destroyed. Destroyed Missile Launcher. Map ----- +----------------------------------------------------+ | #### #####???????????# ???????????????????????? | | ???#*# # #### """????# #???????????????????????? | | ???#%/= + """????# #???????????????????????? | | *??#*# [ ""#????????# #???????????????????????? | | #!#] Y"#????????# #???????????????????????? | | "" +%# ""#????????# #???????????????????????? | | "" # # #????????# #???????????????????????? | | " # # #???????## ##??????????????????????? | | # #####/########## #??????????????????????? | | #?##% = % #??????????????????????? | | #### [%*% % ! #??????????????????????? | | *%[ % % #??????????????????????? | | ########/############ g#??????????????????????? | | ???# ?????????#####x#??????????????????????? | | ???# ! """ #???????????#%#??????????????????????? | | ???# """ #???????????# #??????????????????????? | | ???# """ #???????????# #??????????????????????? | | ???# #???????????# #??????????????????????? | | ???# """ #???????????#%#??"" ?????????????????? | | ???# """ #???????????# #?"""" ????????????????? | | ???# """ ????????????# #?"""" #??????????????? | | ???# ??????????????# #""""" #??????????????? | | ???####+#???????????????#%# """ ]#??????????????? | | ??????# #????############ ???????????????? | | ?###### #????# #??????????????????? | | ## ## #????# @ #??????????????????? | | %% #????# !! """ *k ss ????????????? | | % ####????????! """ %= + ????????? | | % #######????????! """ [ ss #?????????? | | #????????? ##+#######?????????? | | #???????? #??????????????????? | | ####### #??????? ########??????????????????? | | ??????# #??????##+#####??????????????????????????? | | ??????#=#????????????????????????????????????????? | | ??????# #????????????????????????????????????????? | | ??????# #????????????????????????????????????????? | | ??????# #????????????????????????????????????????? | | ??##### #????????????????????????????????????????? | | ###!! #????????????????????????????????????????? | | ##!! #????????????????????????????????????????? | | ##[[ #????????????????????????????????????????? | | ##[[ #????????????????????????????????????????? | | ##]] #????????????????????????????????????????? | | ##]] #????????????????????????????????????????? | | ###### #????????????????????????????????????????? | | ##????# #????????????????????????????????????????? | | ??##### #####????????????????????????????????????? | | ??# #????????????????????????????????????? | | ### #????????????????????????????????????? | | # """ #????????????????????????????????????? | +----------------------------------------------------+ Best States ------------- Heat Dissipation 31 Energy Generation 23 Energy Capacity 280 Matter Stores 300 Matter Capacity 300 Sight Range 20 Terrain Scan Density 10 Armor Coverage 800 Evasion (%) 50 Armor Integrity Analysis 30 Energy Filtering 30 Defensive Hacking 10 Item Schematics ----------------- None Robot Schematics ------------------ None Fabricated ------------ Nothing Alien Tech Used ----------------- None Achievements -------------- Dynamic Key Fist Fight Let's See Who's Tougher Release The Drones! Challenges ------------ None Game ------ Seed SiegeSchematicCutter Manual? 0 Play Time 00:33:12 Cumulative 4.9 hours Start 2025.01.12 @ 01:59:28 End 2025.01.12 @ 02:34:04 Sessions 1 Manual Loads 0 Difficulty Rogue Special Mode None Game No. 6 Rogue 3 Adventurer 3 Explorer 0 Win Type - Total 0 Types 0/0/0/0/0/0/0/0/0 Lore% 3 Gallery% 9 Achievement% 11 Wizard Run 0 Options --------- Layout 0 ASCII 1 Keyboard 1 Movement Arrows Keybinds 0 Fullscreen 2 Font 24/Smallcaps Map View 76x50 Zoom Use 0% Tactical HUD 0 Map Filters NONE Filters NONE Steam 1 RUN: f72ba390-c517-4f38-b998-a3a11ed72b54